bitfinex/quotes_ETHUSD_20250823
["timestamp","ask_amount","ask_price","bid_price","bid_amount"]
[1755919381132,0.001,4715.1,4715.0,5.02751914]
[1755919381507,0.001,4715.1,4715.0,5.29801914]
[1755919382223,0.001,4715.3,4715.0,8.29801914]
[1755919382523,0.021,4715.8,4715.2,0.66]
[1755919382727,0.021,4715.8,4715.7,17.93557483]
[1755919383040,0.021,4715.8,4715.7,21.89499397]
[1755919383242,0.001,4716.1,4715.8,0.66]
[1755919383444,0.001,4716.1,4716.0,0.9617]
[1755919383629,0.1056,4717.4,4716.0,4.15611914]
[1755919383940,0.04,4717.8,4716.7,17.52747483]
[1755919384243,0.04,4717.8,4716.7,21.89399397]
[1755919384544,0.3148,4716.8,4716.7,4.06481914]
[1755919384709,0.02,4716.8,4716.7,4.06481914]
[1755919384908,0.02,4716.8,4716.7,4.36651914]
[1755919385739,0.3148,4716.8,4716.7,0.30081914]
[1755919385946,0.7532,4716.8,4716.7,0.30081914]
[1755919386239,0.7532,4716.8,4716.7,0.19441914]
[1755919387710,0.7532,4716.8,4716.7,0.19365346]
[1755919388144,0.7532,4716.8,4716.2,0.1064]
[1755919388307,0.7532,4716.8,4716.3,0.19359614]
[1755919388511,0.4384,4716.7,4716.4,0.19359614]
[1755919388741,0.4384,4716.7,4716.5,0.19359614]
[1755919388939,0.4384,4716.7,4716.6,0.19359614]
[1755919389110,0.7332,4716.7,4716.6,0.19359614]
[1755919391314,0.02,4716.8,4716.6,0.19359614]
[1755919391646,0.02,4716.8,4716.7,0.49529614]
[1755919391841,0.02,4716.8,4716.7,0.19359614]
[1755919392950,0.02,4716.8,4716.7,0.49529614]
[1755919393267,0.02,4716.8,4716.7,5.2089974]
[1755919393417,0.02,4716.8,4716.7,5.18779614]
[1755919393615,0.02,4716.8,4716.7,5.62510214]
[1755919393817,0.3148,4716.8,4716.7,0.63090214]
[1755919394016,0.7532,4716.8,4716.7,3.95559614]
[1755919394247,0.7532,4716.8,4716.7,0.19359614]
[1755919394456,0.02,4716.8,4716.7,0.19359614]
[1755919394948,0.3148,4716.8,4716.7,0.19359614]
[1755919395114,0.02,4716.8,4716.7,0.19359614]
[1755919395317,0.02,4716.8,4716.7,0.5164974]
[1755919395638,0.02,4716.8,4716.7,0.49529614]
[1755919395949,0.02,4716.8,4716.7,0.5164974]
[1755919396246,0.02,4716.8,4716.7,0.60169614]
[1755919396448,0.02,4716.8,4716.7,1.26169614]
[1755919396619,0.02,4716.8,4716.7,1.777]
[1755919396960,0.02,4716.8,4716.7,1.97059971]
[1755919397327,0.02,4716.8,4716.7,1.97069326]
[1755919397739,0.02,4716.8,4716.7,0.73849326]
[1755919397938,0.3148,4716.8,4716.7,4.06109326]
[1755919398144,0.02,4716.8,4716.7,4.06109326]
[1755919399329,0.02,4716.8,4716.7,4.34739326]
[1755919399524,0.02,4716.8,4716.7,4.06109326]
[1755919399748,0.02,4716.8,4716.7,4.1537]
[1755919400028,0.02,4716.8,4716.7,4.34768654]
[1755919400448,0.02,4716.8,4716.7,4.06138654]
[1755919401266,0.02,4716.8,4716.7,4.34768654]
[1755919402777,0.02,4716.8,4716.7,5.00768654]
[1755919403475,0.001,4717.3,4716.7,5.27818654]
[1755919403644,0.001,4717.3,4716.9,0.66]
[1755919403845,0.001,4717.3,4717.2,1.0519]
[1755919404044,0.001,4717.3,4717.2,5.00588654]
[1755919404244,0.001,4717.3,4717.2,5.47808654]
[1755919405267,0.001,4717.3,4717.2,8.74858654]
[1755919405765,0.001,4717.3,4717.2,8.5546]
[1755919405965,0.001,4717.3,4717.2,8.74903449]
[1755919406381,0.001,4717.3,4717.2,8.74893336]
[1755919406568,0.001,4717.3,4717.2,8.47843336]
[1755919406887,0.001,4717.3,4717.2,8.47743336]
[1755919407883,0.001,4717.3,4717.2,5.19113336]
[1755919408090,0.001,4717.3,4717.2,5.47743336]
[1755919409388,0.33158083,4719.0,4717.3,3.66]
[1755919409699,0.33158083,4719.0,4717.9,0.66]
[1755919409877,0.33158083,4719.0,4717.8,20.38462926]
[1755919409878,0.33158083,4719.0,4718.7,0.1056]
[1755919410082,0.3088,4718.8,4718.7,4.05793336]
[1755919411395,0.781,4718.8,4718.7,4.05793336]
[1755919411682,0.781,4718.8,4718.7,0.19433336]
[1755919411851,0.781,4718.8,4718.7,0.19409063]
[1755919413880,0.02,4718.8,4718.7,0.19409063]
[1755919414604,0.02,4718.8,4718.7,1.1615829]
[1755919414822,0.02,4718.8,4718.7,1.14043167]
[1755919415114,0.3088,4718.8,4718.7,0.85413167]
[1755919415411,0.3088,4718.8,4718.7,0.85418011]
[1755919415773,0.781,4718.8,4718.7,4.61118011]
[1755919416184,0.3088,4718.8,4718.7,4.61118011]
[1755919417407,0.02,4718.8,4718.7,4.61118011]
[1755919417919,0.3088,4718.8,4718.7,4.61118011]
[1755919418080,0.3088,4718.8,4718.7,0.85418011]
[1755919418413,0.781,4718.8,4718.7,0.19418011]
[1755919418579,0.781,4718.8,4718.7,3.95018011]
[1755919418785,0.781,4718.8,4718.7,0.19418011]
[1755919420024,0.02,4718.8,4718.7,0.19418011]
[1755919420698,0.02,4718.8,4718.7,0.48048011]
[1755919420903,0.02,4718.8,4718.7,0.48121342]
[1755919421103,0.02,4718.8,4718.7,0.19491342]
[1755919421620,0.02,4718.8,4718.7,0.30051342]
[1755919422006,0.02,4718.8,4718.7,0.58681342]
[1755919423933,0.02,4718.8,4718.7,0.58682524]
[1755919424535,0.02,4718.8,4718.7,0.58686503]
[1755919424835,0.02,4718.8,4718.7,1.71666503]
[1755919425129,0.02,4718.8,4718.7,2.18880147]
[1755919426237,0.02,4718.8,4718.7,2.20999374]
[1755919426541,0.022,4719.8,4718.8,0.66]
[1755919426725,0.022,4719.8,4719.7,9.63508534]
[1755919426932,0.022,4719.8,4719.7,13.69058681]
[1755919427425,0.783,4719.8,4719.7,0.30050147]
[1755919428206,0.022,4719.8,4719.7,0.30050147]
[1755919428419,0.022,4719.8,4719.7,0.32168925]
[1755919428621,0.3087,4719.8,4719.7,0.30050147]
[1755919429022,0.7834,4719.8,4719.7,0.19490147]
[1755919429655,0.7834,4719.8,4719.0,3.754]
[1755919429961,0.4747,4719.7,4719.0,3.754]
[1755919430119,0.2867,4719.1,4718.7,3.754]
[1755919430449,0.4747,4719.0,4718.7,3.754]
[1755919430629,0.2867,4718.8,4718.7,3.754]
[1755919431315,0.827,4718.8,4718.7,3.754]
[1755919432032,0.3523,4718.8,4718.7,3.754]
[1755919432353,0.0656,4718.8,4718.7,4.7087]
[1755919432726,0.0656,4718.8,4718.7,4.414]
[1755919433049,0.827,4718.8,4718.4,3.753]
[1755919433248,0.4747,4718.7,4718.4,3.753]
[1755919433450,0.2867,4718.5,4718.2,1.629]
[1755919433655,0.2867,4718.5,4718.3,3.753]
[1755919433953,0.2867,4718.5,4717.9,0.001]
[1755919433954,0.4747,4718.4,4717.9,0.001]
[1755919434247,0.2867,4718.0,4717.9,0.001]
[1755919434643,0.7614,4718.0,4717.9,0.001]
[1755919436849,0.4747,4718.5,4717.9,0.001]
[1755919437048,0.2867,4718.0,4717.9,0.001]
[1755919437736,0.7614,4718.0,4717.9,0.001]
[1755919438943,0.867,4718.0,4717.9,0.001]
[1755919441745,0.867,4718.0,4717.9,0.1964172]
[1755919442053,0.867,4718.0,4717.9,0.19635874]
[1755919444171,0.867,4718.0,4717.9,0.001]
[1755919450006,1.19868478,4718.0,4717.9,0.001]
[1755919450808,0.72398478,4718.0,4717.9,0.001]
[1755919451009,0.33168478,4718.0,4717.9,0.92253083]
[1755919452612,0.33168478,4718.0,4717.9,0.49053083]
[1755919453419,0.33168478,4718.0,4717.9,0.92253083]
[1755919454698,0.33168478,4718.0,4717.9,0.19583083]
[1755919454902,0.0031,4718.0,4717.9,0.19583083]
[1755919455134,0.3121,4718.0,4717.9,0.19583083]
[1755919455333,0.0656,4718.8,4717.9,0.19583083]
[1755919455499,0.312,4718.7,4718.0,0.19483083]
[1755919455830,0.312,4718.7,4718.1,0.19483083]
[1755919455998,0.312,4718.7,4718.2,0.19483083]
[1755919456198,0.312,4718.7,4718.3,0.19483083]
[1755919456398,0.312,4718.7,4718.4,0.19505846]
[1755919456638,0.0656,4718.8,4718.5,0.19505846]
[1755919456936,0.3776,4718.8,4718.6,0.19505846]
[1755919457098,0.0031,4718.7,4717.9,0.001]
[1755919457304,0.0031,4718.7,4718.0,0.1950353]
[1755919457641,0.0031,4718.7,4718.1,0.1950353]
[1755919457935,0.0031,4718.7,4718.2,0.1950353]
[1755919458139,0.0031,4718.7,4718.3,0.1950353]
[1755919458302,0.448,4718.7,4718.4,0.1950353]
[1755919458508,0.448,4718.7,4718.5,0.1950353]
[1755919458710,0.0031,4718.7,4718.6,0.1950353]
[1755919459315,0.448,4718.7,4718.6,0.1950353]
[1755919459608,0.448,4718.7,4718.6,0.19541216]
[1755919460034,0.448,4718.7,4718.6,0.19543459]
[1755919460727,0.0031,4718.7,4718.6,0.19543459]
[1755919461611,0.3347394,4718.7,4718.6,0.19543459]
[1755919462114,0.7796394,4718.7,4718.6,0.19543459]
[1755919462717,0.7796394,4718.7,4718.6,0.19544352]
[1755919463118,0.3316394,4718.7,4718.6,0.49134352]
[1755919464026,0.3316394,4718.7,4718.6,0.19544352]
[1755919464939,0.4372394,4718.7,4718.6,0.19544352]
[1755919465522,0.4372394,4718.7,4718.6,0.49134352]
[1755919465731,0.1056,4718.7,4718.6,0.49134352]
[1755919466047,0.1056,4718.7,4718.6,0.19544352]
[1755919467041,0.392,4718.7,4718.6,0.19544352]
[1755919467544,0.1056,4718.7,4718.6,0.19544352]
[1755919468630,0.1056,4718.7,4718.6,0.19558647]
[1755919469217,0.43722858,4718.7,4718.6,0.19552391]
[1755919470313,0.72362858,4718.7,4718.6,0.19552391]
[1755919472543,0.43722858,4718.7,4718.6,0.19552391]
[1755919473646,0.72362858,4718.7,4718.6,0.19552391]
[1755919473843,1.16852858,4718.7,4718.6,0.19552391]
[1755919475433,4.46862858,4718.7,4718.6,0.19552391]
[1755919476158,0.72362858,4718.7,4718.6,0.19552391]
[1755919476461,0.1056,4718.7,4718.6,0.49142391]
[1755919477657,0.1056,4718.7,4718.6,0.2959]
[1755919477857,0.1056,4718.7,4718.6,0.49157884]
[1755919478030,0.1056,4718.7,4718.6,0.95057884]
[1755919478666,0.1056,4718.7,4718.6,0.95061693]
[1755919480758,0.43721155,4718.7,4718.6,0.95061693]
[1755919481131,0.33161155,4718.7,4718.6,0.95061693]
[1755919482335,0.33161155,4718.7,4718.6,1.05621693]
[1755919485180,0.33161155,4718.7,4718.6,1.05618791]
[1755919486481,0.72361155,4718.7,4718.6,0.19568791]
[1755919486775,0.43721155,4718.7,4718.6,0.19568791]
[1755919487177,0.43721155,4718.7,4718.6,0.19602803]
[1755919488159,0.43721155,4718.7,4718.6,0.49192803]
[1755919489862,0.1056,4718.7,4718.6,0.49192803]
[1755919490464,0.1056,4718.7,4718.6,0.95102803]
[1755919490880,0.1056,4718.7,4718.6,0.49192803]
[1755919492000,0.403,4718.7,4718.6,0.19602803]
[1755919492576,0.1056,4718.7,4718.6,0.49912803]
[1755919492894,0.403,4718.7,4718.6,0.19602803]
[1755919493113,0.43719229,4718.7,4718.6,0.19602803]
[1755919493866,0.43719229,4718.7,4718.6,0.49912803]
[1755919494895,0.43719229,4718.7,4718.6,0.19602803]
[1755919495113,0.73459229,4718.7,4718.6,0.19602803]
[1755919495608,0.43719229,4718.7,4718.6,0.19602803]
[1755919495977,0.43719229,4718.7,4718.6,0.43352803]
[1755919496182,0.43719229,4718.7,4718.6,0.3031]
[1755919496798,0.43719229,4718.7,4718.3,0.4591]
[1755919496965,0.43719229,4718.7,4718.2,1.63]
[1755919497369,0.43719229,4718.7,4718.2,2.0891]
[1755919498392,0.43719229,4718.7,4718.2,1.63]
[1755919499120,0.1056,4718.7,4718.2,1.63]
[1755919499507,0.1056,4718.7,4718.2,2.0891]
[1755919500516,0.1056,4718.7,4718.2,1.63]
[1755919500724,0.2974,4718.3,4718.1,0.001]
[1755919500886,0.1056,4718.2,4718.1,0.001]
[1755919501088,0.403,4718.2,4718.1,0.001]
[1755919501286,0.841,4718.2,4718.1,0.001]
[1755919502825,2.96045233,4718.2,4718.1,0.001]
[1755919502984,4.17268416,4718.2,4718.1,0.001]
[1755919503183,4.25760816,4718.2,4718.1,0.001]
[1755919503922,6.37706049,4718.2,4718.1,0.001]
[1755919504587,4.25760816,4718.2,4718.1,0.001]
[1755919504993,7.99360816,4718.2,4718.1,0.001]
[1755919505626,4.80308416,4718.2,4718.1,0.001]
[1755919505786,4.25759816,4718.2,4718.1,0.001]
[1755919506092,0.81959816,4718.2,4718.1,0.001]
[1755919506287,0.73468416,4718.2,4718.1,0.001]
[1755919507235,0.1056,4718.2,4718.1,0.3041]
[1755919507408,3.36999999,4718.7,4718.1,0.7632]
[1755919507607,3.735,4719.3,4718.1,0.7632]
[1755919507810,0.1056,4718.8,4718.2,0.19589618]
[1755919508011,0.1056,4718.8,4718.7,0.3031]
[1755919508188,0.1056,4718.8,4718.7,0.95809618]
[1755919508587,0.3598,4719.8,4718.7,0.95809618]
[1755919508588,0.636646,4719.7,4718.7,0.95809618]
[1755919508801,0.1056,4719.5,4718.8,0.781788]
[1755919508995,0.1056,4719.7,4719.1,0.1056]
[1755919509190,0.0034,4719.2,4718.7,0.1056]
[1755919509492,0.1056,4718.9,4718.8,0.19608771]
[1755919509716,0.4435,4718.9,4718.8,0.19608771]
[1755919510310,4.1775,4718.9,4718.8,0.19624251]
[1755919510507,6.29663793,4718.9,4718.8,0.19624251]
[1755919510707,7.1775,4718.9,4718.8,0.19624251]
[1755919511128,6.22263793,4718.9,4718.8,0.19624251]
[1755919511424,2.11927266,4718.7,4718.1,0.001]
[1755919511595,3.3378,4718.8,4718.2,0.19647935]
[1755919511794,2.11918658,4718.8,4718.3,0.19647935]
[1755919512138,0.86593463,4718.7,4718.4,0.19647935]
[1755919512437,0.1056,4718.2,4718.1,0.001]
[1755919512640,2.033,4718.2,4718.1,0.1973883]
[1755919512846,2.471,4718.2,4718.1,0.1973883]
[1755919513546,2.80265681,4718.2,4718.1,0.19749757]
[1755919513948,2.80265681,4718.2,4718.1,0.19759151]
[1755919515175,6.09765681,4718.2,4718.1,0.19759151]
[1755919515469,5.80025681,4718.2,4718.1,0.19759151]
[1755919516560,5.766,4718.2,4718.1,0.1974913]
[1755919516758,6.204,4718.2,4718.1,0.1974913]
[1755919517642,11.32345233,4718.2,4718.1,0.1974913]
[1755919518341,9.204,4718.2,4718.1,0.1974913]
[1755919518563,9.203,4718.2,4718.1,0.1974913]
[1755919519177,9.203,4718.2,4718.1,0.001]
[1755919519384,11.32245233,4718.2,4718.1,0.001]
[1755919519547,9.203,4718.2,4718.1,0.001]
[1755919519898,9.287924,4718.2,4718.1,0.001]
[1755919520891,5.117924,4718.2,4718.1,0.001]
[1755919521189,9.298024,4718.2,4718.1,0.001]
[1755919521777,9.62970639,4718.2,4718.1,0.001]
[1755919522196,9.62970639,4718.2,4718.1,0.19761248]
[1755919522485,9.62970639,4718.2,4718.1,0.19760334]
[1755919525780,5.89770639,4718.2,4718.1,0.19760334]
[1755919525986,9.62870639,4718.2,4718.1,0.19760334]
[1755919526183,11.74815872,4718.2,4718.1,0.19760334]
[1755919526883,12.99870638,4718.2,4718.1,0.19760334]
[1755919527083,12.99770638,4718.2,4718.1,0.19760334]
[1755919527287,9.26770638,4718.2,4718.1,0.19760334]
[1755919527590,9.62770639,4718.2,4718.1,0.19760334]
[1755919528483,9.17960639,4718.2,4718.1,0.19760334]
[1755919528656,9.62770639,4718.2,4718.1,0.19760334]
[1755919529379,11.74715872,4718.2,4718.1,0.19760334]
[1755919529580,2.11954217,4718.0,4717.9,0.001]
[1755919529853,9.80064217,4718.0,4717.9,0.001]
[1755919530094,10.24874217,4718.0,4717.9,0.001]
[1755919530256,10.33367317,4718.0,4717.9,0.001]
[1755919531968,10.79099897,4718.0,4717.9,0.001]
[1755919532366,19.69341796,4718.0,4717.9,0.001]
[1755919532775,20.14429957,4718.0,4717.9,0.001]
[1755919532970,20.14329722,4718.0,4717.9,0.001]
[1755919533786,5.7795871,4717.9,4717.4,0.001]
[1755919533984,12.04726255,4717.9,4717.4,0.001]
[1755919534154,12.49536255,4717.9,4717.4,0.001]
[1755919534359,16.22336255,4717.9,4717.4,0.001]
[1755919534683,16.79461431,4717.9,4717.4,0.001]
[1755919534856,24.80813189,4717.9,4717.4,0.001]
[1755919536867,24.60963265,4717.9,4717.4,0.001]
[1755919537184,24.80782384,4717.9,4717.4,0.001]
[1755919537386,19.02584236,4717.9,4717.4,0.001]
[1755919537585,15.45665118,4717.9,4717.4,0.001]
[1755919537800,24.16053265,4717.9,4717.4,0.001]
[1755919538314,11.9276,4717.9,4717.8,0.3133]
[1755919539169,14.50380761,4717.9,4717.8,0.3133]
[1755919539363,14.2257871,4717.9,4717.8,0.02]
[1755919539579,14.55750994,4717.9,4717.8,0.02]
[1755919540079,10.83050994,4717.9,4717.8,0.02]
[1755919540399,14.37890994,4717.9,4717.8,0.02]
[1755919540765,12.25932284,4717.9,4717.8,0.3133]
[1755919541670,0.43732284,4717.9,4717.8,0.3133]
[1755919541898,4.16332284,4717.9,4717.8,0.7715]
[1755919542197,3.8316,4717.9,4717.8,0.7725]
[1755919542720,0.1056,4717.9,4717.8,0.7725]
[1755919542997,3.8316,4717.9,4717.8,0.7725]
[1755919543777,0.1056,4717.9,4717.8,0.7725]
[1755919543984,3.8316,4717.9,4717.8,0.7725]
[1755919548737,0.1056,4717.9,4717.8,0.7725]
[1755919549101,3.8296,4717.9,4717.8,0.7725]
[1755919550447,4.16125663,4717.9,4717.8,0.7725]
[1755919551554,4.16025663,4717.9,4717.8,0.7725]
[1755919553974,0.43725663,4717.9,4717.8,0.7725]
[1755919554424,0.33165663,4717.9,4717.8,0.7725]
[1755919554828,0.002,4718.1,4717.8,0.7725]
[1755919555061,0.002,4718.1,4717.8,0.3143]
[1755919555263,0.002,4718.1,4717.9,0.43]
[1755919555464,0.002,4718.1,4718.0,0.31]
[1755919555969,0.002,4718.1,4718.0,0.74]
[1755919557040,0.002,4718.1,4718.0,1.4]
[1755919557242,0.002,4718.1,4718.0,3.41705744]
[1755919558628,0.002,4718.1,4718.0,3.39586202]
[1755919558867,0.002,4718.1,4718.0,3.41705744]
[1755919559463,0.002,4718.6,4718.1,0.66]
[1755919559661,0.002,4718.6,4718.5,0.97]
[1755919559964,0.002,4718.6,4718.5,1.23811945]
[1755919560131,0.002,4718.6,4718.5,0.74]
[1755919560736,0.002,4718.6,4718.5,0.31]
[1755919560931,0.002,4718.6,4718.5,0.74]
[1755919561342,0.002,4718.9,4718.5,0.74]
[1755919561343,0.002,4718.9,4718.6,0.66]
[1755919561550,0.002,4718.9,4718.8,0.97]
[1755919562192,0.002,4718.9,4718.8,0.74]
[1755919562510,0.002,4718.9,4718.2,1.63]
[1755919562645,0.2911,4718.9,4718.2,1.63]
[1755919564378,0.1056,4718.6,4718.2,1.63]
[1755919564597,0.1056,4718.6,4718.3,0.41218109]
[1755919564876,0.002,4718.9,4718.5,0.31]
[1755919565180,0.002,4718.9,4718.6,0.19562109]
[1755919565382,0.002,4718.9,4718.8,0.31]
[1755919565549,0.002,4718.9,4718.8,0.50562109]
[1755919565755,0.002,4718.9,4718.8,1.04186252]
[1755919566445,0.002,4718.9,4718.8,1.14746252]
[1755919567267,0.002,4718.9,4718.8,0.95184143]
[1755919567474,0.002,4718.9,4718.8,1.14745882]
[1755919567968,0.002,4718.9,4718.8,1.14742208]
[1755919568134,0.002,4718.9,4718.8,1.14742436]
[1755919568981,0.002,4718.9,4718.8,1.80742436]
[1755919569189,0.002,4718.9,4718.8,1.82861618]
[1755919569399,0.002,4718.9,4718.8,1.14742436]
[1755919569543,0.002,4718.9,4718.8,4.75782436]
[1755919570777,0.002,4718.9,4718.8,0.61182436]
[1755919570973,0.002,4718.9,4718.8,0.21558293]
[1755919572087,0.2911,4718.9,4718.8,0.21558293]
[1755919572292,0.7559,4718.9,4718.8,0.21558293]
[1755919572970,0.2911,4718.9,4718.8,0.21558293]
[1755919573502,0.2911,4718.9,4718.8,0.21591968]
[1755919573660,0.7559,4718.9,4718.8,0.21591968]
[1755919574343,0.2911,4718.9,4718.8,0.21591968]
[1755919574549,0.002,4718.9,4718.8,0.21591968]
[1755919575046,0.002,4718.9,4718.8,0.52591968]
[1755919575246,0.002,4718.9,4718.8,0.95591968]
[1755919575664,0.002,4718.9,4718.8,1.58581165]
[1755919575873,0.002,4718.9,4718.8,2.24700347]
[1755919576071,0.002,4718.9,4718.8,2.22581165]
[1755919576375,0.002,4718.9,4718.8,1.56581572]
[1755919576573,0.002,4718.9,4718.8,5.27981572]
[1755919576965,0.002,4718.9,4718.8,0.82581572]
[1755919577182,0.002,4718.9,4718.8,0.19592375]
[1755919579293,0.2973,4718.9,4718.8,0.19592375]
[1755919579464,0.7699,4718.9,4718.8,0.19651875]
[1755919579673,0.8755,4718.9,4718.8,0.19651875]
[1755919580681,0.8755,4718.9,4718.8,0.19658013]
[1755919581512,1.12615,4718.9,4718.8,0.19658013]
[1755919582470,1.12615,4718.9,4718.8,0.19686057]
[1755919583762,0.8755,4718.9,4718.8,0.19686057]
[1755919585121,0.4029,4718.9,4718.8,0.19686057]
[1755919585398,0.4029,4718.9,4718.1,0.001]
[1755919585564,0.1056,4718.5,4718.2,0.19682135]
[1755919585767,0.1056,4718.5,4718.3,0.19682135]
[1755919585968,0.1056,4718.5,4718.4,0.19682135]
[1755919587261,0.1056,4718.5,4718.4,0.50982135]
[1755919587469,0.002,4718.9,4718.4,0.96112135]
[1755919587663,0.1056,4718.7,4718.5,0.19682135]
[1755919587991,0.1056,4718.7,4718.6,0.19682135]
[1755919588694,0.1056,4718.7,4718.6,0.50982135]
[1755919588868,0.002,4718.9,4718.6,0.96112135]
[1755919589070,0.002,4718.9,4718.7,0.64812135]
[1755919589396,0.002,4718.9,4718.8,0.50982135]
[1755919590101,0.0596,4719.1,4718.8,0.50982135]
[1755919590285,0.0596,4719.1,4718.9,0.19682135]
[1755919590470,0.0596,4719.1,4719.0,0.19682135]
[1755919591469,0.0596,4719.1,4719.0,0.50982135]
[1755919592099,0.002,4719.4,4719.0,0.6166007]
[1755919592405,0.002,4719.4,4719.1,0.19682135]
[1755919592610,0.002,4719.4,4719.3,0.313]
[1755919592815,0.002,4719.4,4719.3,0.50982135]
[1755919593320,0.002,4719.4,4719.3,0.19682135]
[1755919593321,0.7699,4719.4,4719.3,0.19682135]
[1755919593522,0.2973,4719.4,4719.3,0.19682135]
[1755919593847,0.002,4719.4,4719.3,0.19682135]
[1755919594578,0.002,4719.4,4719.3,0.313]
[1755919594812,0.1076,4719.4,4719.3,0.313]
[1755919596024,0.002,4719.4,4719.3,0.7643]
[1755919597392,0.002,4719.4,4719.3,0.313]
[1755919598611,0.002,4719.4,4719.3,0.7643]
[1755919599121,0.002,4719.4,4719.3,0.313]
[1755919600514,0.002,4719.4,4719.3,0.7643]
[1755919601129,0.002,4719.4,4719.3,0.313]
[1755919601702,0.002,4719.4,4719.3,0.7643]
[1755919602000,0.002,4719.4,4719.3,0.313]
[1755919602209,0.002,4719.4,4719.3,0.7643]
[1755919607326,0.002,4719.4,4719.3,4.4713]
[1755919607514,0.002,4719.4,4719.3,4.92054914]
[1755919610339,0.002,4719.4,4719.3,5.02614914]
[1755919611131,0.002,4719.4,4719.3,4.57484914]
[1755919611317,0.7712,4719.4,4719.1,0.001]
[1755919611648,0.4712,4719.3,4719.1,0.001]
[1755919611845,0.298,4719.2,4719.1,0.001]
[1755919612356,2.3982,4719.2,4719.1,0.001]
[1755919612558,4.76798322,4719.2,4719.1,0.001]
[1755919612913,3.30898,4719.2,4719.1,0.001]
[1755919613613,0.002,4720.2,4719.4,0.66]
[1755919613915,0.002,4720.4,4720.3,0.7664875]
[1755919614143,0.02,4721.8,4720.4,3.66]
[1755919614351,0.02,4721.8,4721.7,0.3114]
[1755919614550,0.02,4721.8,4721.7,5.6774]
[1755919614713,0.02,4721.8,4721.7,7.20573431]
[1755919615031,0.02,4721.8,4721.7,6.8985]
[1755919615255,0.02,4721.8,4721.7,9.8985]
[1755919615442,0.02,4721.8,4721.7,10.95278652]
[1755919618531,0.1056,4723.6,4721.8,3.66]
[1755919618735,0.4712,4724.0,4723.4,0.1056]
[1755919618935,0.4712,4724.0,4723.5,3.73]
[1755919619158,0.1056,4724.1,4723.5,3.73]
[1755919619159,0.1056,4724.1,4723.6,0.38356]
[1755919619431,0.4912,4723.8,4723.6,0.38356]
[1755919619650,0.298,4723.7,4723.6,0.38356]
[1755919619842,0.7692,4723.7,4723.6,0.38356]
[1755919620041,0.7692,4723.7,4723.1,1.629]
[1755919620332,0.00308855,4723.4,4723.1,1.629]
[1755919620532,0.298,4723.2,4723.1,1.629]
[1755919620840,0.7692,4723.2,4723.1,1.629]
[1755919621857,0.7692,4723.2,4722.3,5.369]
[1755919622068,0.4712,4723.1,4722.3,1.628]
[1755919622365,0.4036,4722.4,4722.1,3.741]
[1755919622565,0.4712,4722.3,4722.1,3.741]
[1755919622773,0.7692,4722.2,4721.6,5.368]
[1755919622942,0.1056,4721.9,4721.6,5.368]
[1755919623143,0.298,4721.7,4721.6,5.368]
[1755919623370,0.1056,4721.9,4721.6,5.368]
[1755919623594,1.628,4723.1,4721.6,5.368]
[1755919623595,0.4712,4722.6,4721.7,0.02117881]
[1755919623738,0.1056,4722.3,4721.7,0.02117881]
[1755919623937,0.1056,4722.7,4722.0,0.1056]
[1755919624188,0.1056,4722.7,4722.1,3.739]
[1755919624467,0.1056,4723.3,4722.6,0.1056]
[1755919624682,0.1056,4723.3,4722.7,3.93363802]
[1755919624889,0.1056,4723.3,4722.8,0.19463802]
[1755919625047,0.1056,4723.3,4722.7,3.739]
[1755919625048,0.4712,4723.2,4722.9,0.19463802]
[1755919625252,0.4712,4723.1,4723.0,0.19463802]
[1755919625453,0.7692,4723.1,4723.0,0.19463802]
[1755919626981,0.7692,4723.1,4723.0,0.19458052]
[1755919628041,0.298,4723.1,4723.0,0.19458052]
[1755919628373,0.1056,4723.3,4723.0,0.19458052]
[1755919628573,0.1056,4723.3,4723.1,0.19458052]
[1755919628778,0.1056,4723.3,4723.2,0.19458052]
[1755919629143,0.1056,4723.3,4723.2,0.90165592]
[1755919629342,0.02,4723.8,4723.2,0.90165592]
[1755919629543,0.02,4723.8,4723.3,3.92858052]
[1755919629777,0.02,4723.8,4723.4,0.19458052]
[1755919629985,0.02,4723.8,4723.5,0.194587]
[1755919630156,0.02,4723.8,4723.6,0.194587]
[1755919630484,0.02,4723.8,4723.7,0.194587]
[1755919631895,0.318,4723.8,4723.7,0.194587]
[1755919636476,0.02,4723.8,4723.7,0.505987]
[1755919636782,0.02,4723.8,4723.7,3.0134857]
[1755919637282,0.02,4723.8,4723.7,3.6734857]
[1755919638395,0.02,4723.8,4723.7,7.3944857]
[1755919638940,0.02,4723.8,4723.7,7.1998987]
[1755919639090,0.02,4723.8,4723.7,7.39444672]
[1755919639284,0.02,4723.8,4723.7,5.54354802]
[1755919639682,0.02,4723.8,4723.7,5.85194703]
[1755919639885,0.02,4723.8,4723.7,6.29803075]
[1755919640194,0.02,4723.8,4723.7,5.54363075]
[1755919641166,0.3155,4723.8,4723.7,5.54363075]
[1755919641368,0.3155,4723.8,4723.7,1.82263075]
[1755919641669,0.7507,4723.8,4723.7,5.54363075]
[1755919642078,0.7507,4723.8,4723.7,1.82263075]
[1755919642296,0.7507,4723.8,4723.7,5.54363075]
[1755919642467,0.7507,4723.8,4723.7,5.54263075]
[1755919643176,0.7507,4723.8,4723.7,0.19463075]
[1755919644178,0.66,4722.7,4720.5,1.88085861]
[1755919644485,0.66,4722.7,4719.8,0.02]
[1755919644486,0.2955,4720.7,4719.8,0.02]
[1755919644808,2.11853488,4720.3,4719.8,0.02]